[Event "Titled Tuesday Blitz October 31 Late 2023"]
[White "Le, Quang Liem"]
[Black "Zavgorodniy, Sergiy"]
[WhiteFideId "12401137"]
[BlackFideId "14110148"]
[WhiteElo "3047"]
[BlackElo "2682"]
[Result "1/2-1/2"]
[Round "3"]
[TimeControl "180+1"]
[Date "2023.10.31"]
[WhiteClock "0:00:18"]
[BlackClock "0:00:19"]
[Board "36"]

1. Nf3 {[%clk 0:02:57]}  d5 {[%clk 0:02:59]} 2. e3 {[%clk 0:02:55]}  Nf6 {[%clk 0:02:59]} 3. c4 {[%clk 0:02:56]}  e6 {[%clk 0:02:59]} 4. Nc3 {[%clk 0:02:54]}  dxc4 {[%clk 0:02:59]} 5. Bxc4 {[%clk 0:02:53]}  a6 {[%clk 0:03:00]} 6. O-O {[%clk 0:02:50]}  b5 {[%clk 0:03:00]} 7. Be2 {[%clk 0:02:49]}  Bb7 {[%clk 0:03:01]} 8. b3 {[%clk 0:02:41]}  c5 {[%clk 0:02:58]} 9. Bb2 {[%clk 0:02:42]}  Nbd7 {[%clk 0:02:56]} 10. Rc1 {[%clk 0:02:39]}  Be7 {[%clk 0:02:57]} 11. Qc2 {[%clk 0:02:37]}  Rc8 {[%clk 0:02:55]} 12. Rfd1 {[%clk 0:02:36]}  O-O {[%clk 0:02:55]} 13. d3 {[%clk 0:02:36]}  Qb6 {[%clk 0:02:54]} 14. a4 {[%clk 0:02:34]}  Rfd8 {[%clk 0:02:53]} 15. h3 {[%clk 0:02:34]}  h6 {[%clk 0:02:51]} 16. Qb1 {[%clk 0:02:30]}  Ba8 {[%clk 0:02:46]} 17. Qa1 {[%clk 0:02:28]}  Bf8 {[%clk 0:02:44]} 18. Nd2 {[%clk 0:02:14]}  Nd5 {[%clk 0:02:41]} 19. Nxd5 {[%clk 0:02:05]}  Bxd5 {[%clk 0:02:42]} 20. Bf3 {[%clk 0:02:04]}  Bxf3 {[%clk 0:02:39]} 21. Nxf3 {[%clk 0:02:05]}  Rc7 {[%clk 0:02:37]} 22. Bc3 {[%clk 0:02:01]}  Rc6 {[%clk 0:02:14]} 23. axb5 {[%clk 0:02:00]}  Qxb5 {[%clk 0:02:15]} 24. Nd2 {[%clk 0:01:51]}  Rb8 {[%clk 0:02:10]} 25. Nc4 {[%clk 0:01:49]}  Rcc8 {[%clk 0:02:05]} 26. Rd2 {[%clk 0:01:46]}  Nb6 {[%clk 0:01:50]} 27. Ra2 {[%clk 0:01:44]}  Nd5 {[%clk 0:01:45]} 28. Bd2 {[%clk 0:01:29]}  Qxb3 {[%clk 0:01:39]} 29. e4 {[%clk 0:01:29]}  Nf6 {[%clk 0:01:12]} 30. Ra3 {[%clk 0:01:26]}  Qb7 {[%clk 0:01:08]} 31. Bxh6 {[%clk 0:01:22]}  gxh6 {[%clk 0:00:56]} 32. Qxf6 {[%clk 0:01:21]}  Bg7 {[%clk 0:00:56]} 33. Qf4 {[%clk 0:01:16]}  Rd8 {[%clk 0:00:55]} 34. e5 {[%clk 0:00:56]}  Rd4 {[%clk 0:00:53]} 35. Qe3 {[%clk 0:00:56]}  Qd5 {[%clk 0:00:50]} 36. f4 {[%clk 0:00:50]}  Bf8 {[%clk 0:00:40]} 37. Rf1 {[%clk 0:00:47]}  Rd8 {[%clk 0:00:37]} 38. Rf3 {[%clk 0:00:47]}  Kh8 {[%clk 0:00:36]} 39. Kh2 {[%clk 0:00:44]}  Be7 {[%clk 0:00:30]} 40. Rxa6 {[%clk 0:00:39]}  Rxd3 {[%clk 0:00:30]} 41. Qxd3 {[%clk 0:00:39]}  Qxd3 {[%clk 0:00:30]} 42. Rxd3 {[%clk 0:00:40]}  Rxd3 {[%clk 0:00:31]} 43. Ra7 {[%clk 0:00:41]}  Bh4 {[%clk 0:00:27]} 44. g4 {[%clk 0:00:36]}  Bg3+ {[%clk 0:00:26]} 45. Kg2 {[%clk 0:00:36]}  Bxf4 {[%clk 0:00:25]} 46. Nd6 {[%clk 0:00:34]}  Kg8 {[%clk 0:00:20]} 47. Nxf7 {[%clk 0:00:25]}  Rg3+ {[%clk 0:00:19]} 48. Kf2 {[%clk 0:00:18]}  Rxh3 {[%clk 0:00:19]} 1/2-1/2


[Site "https://www.chess.com"]

[Event "Titled Tuesday Blitz October 31 Late 2023"]
[White "Rosen, Eric"]
[Black "Paravyan, David"]
[WhiteFideId "2032562"]
[BlackFideId "4194985"]
[WhiteElo "2668"]
[BlackElo "3046"]
[Result "1/2-1/2"]
[Round "3"]
[TimeControl "180+1"]
[Date "2023.10.31"]
[WhiteClock "0:00:28"]
[BlackClock "0:02:09"]
[Board "37"]

1. e4 {[%clk 0:03:00]}  e5 {[%clk 0:02:58]} 2. Nf3 {[%clk 0:03:00]}  Nf6 {[%clk 0:02:58]} 3. Nc3 {[%clk 0:03:01]}  Nc6 {[%clk 0:02:58]} 4. d4 {[%clk 0:03:00]}  exd4 {[%clk 0:02:59]} 5. Nxd4 {[%clk 0:03:01]}  Bb4 {[%clk 0:02:59]} 6. Nxc6 {[%clk 0:03:02]}  bxc6 {[%clk 0:03:00]} 7. Bd3 {[%clk 0:03:02]}  O-O {[%clk 0:03:00]} 8. O-O {[%clk 0:03:02]}  d5 {[%clk 0:03:01]} 9. Bd2 {[%clk 0:03:03]}  Bxc3 {[%clk 0:03:01]} 10. Bxc3 {[%clk 0:03:03]}  dxe4 {[%clk 0:03:02]} 11. Bxf6 {[%clk 0:03:02]}  Qxf6 {[%clk 0:03:03]} 12. Bxe4 {[%clk 0:03:03]}  Qxb2 {[%clk 0:03:03]} 13. Bxc6 {[%clk 0:03:01]}  Rb8 {[%clk 0:03:03]} 14. Rb1 {[%clk 0:03:01]}  Qxb1 {[%clk 0:03:04]} 15. Qxb1 {[%clk 0:03:01]}  Rxb1 {[%clk 0:03:04]} 16. Rxb1 {[%clk 0:03:02]}  Rd8 {[%clk 0:03:04]} 17. h4 {[%clk 0:02:53]}  Kf8 {[%clk 0:03:04]} 18. Bf3 {[%clk 0:02:36]}  Bf5 {[%clk 0:03:02]} 19. Rb7 {[%clk 0:02:33]}  Rd4 {[%clk 0:02:55]} 20. Rxc7 {[%clk 0:02:24]}  Rxh4 {[%clk 0:02:46]} 21. Bd5 {[%clk 0:02:14]}  Be6 {[%clk 0:02:38]} 22. Bb3 {[%clk 0:01:50]}  a5 {[%clk 0:02:24]} 23. Ra7 {[%clk 0:01:43]}  Rh5 {[%clk 0:02:22]} 24. Kf1 {[%clk 0:01:30]}  Re5 {[%clk 0:02:13]} 25. f4 {[%clk 0:01:06]}  Rf5 {[%clk 0:02:13]} 26. g3 {[%clk 0:01:03]}  g5 {[%clk 0:02:12]} 27. Bxe6 {[%clk 0:00:59]}  fxe6 {[%clk 0:02:13]} 28. Ke2 {[%clk 0:00:45]}  gxf4 {[%clk 0:02:13]} 29. gxf4 {[%clk 0:00:44]}  Rxf4 {[%clk 0:02:13]} 30. Rxa5 {[%clk 0:00:44]}  Ke7 {[%clk 0:02:09]} 31. Rh5 {[%clk 0:00:42]}  Ra4 {[%clk 0:02:08]} 32. Rxh7+ {[%clk 0:00:41]}  Kd6 {[%clk 0:02:09]} 33. Rh3 {[%clk 0:00:29]}  Rxa2 {[%clk 0:02:09]} 34. Rc3 {[%clk 0:00:28]}  Kd5 {[%clk 0:02:09]} 1/2-1/2


[Site "https://www.chess.com"]

[Event "Titled Tuesday Blitz October 31 Late 2023"]
[White "Piesik, Piotr"]
[Black "Daneshvar, Bardiya"]
[WhiteFideId "1136194"]
[BlackFideId "12576468"]
[WhiteElo "2650"]
[BlackElo "2951"]
[Result "1/2-1/2"]
[Round "3"]
[TimeControl "180+1"]
[Date "2023.10.31"]
[WhiteClock "0:00:36"]
[BlackClock "0:00:27"]
[Board "38"]

1. Nf3 {[%clk 0:02:57]}  d6 {[%clk 0:03:00]} 2. d4 {[%clk 0:02:56]}  g6 {[%clk 0:03:01]} 3. g3 {[%clk 0:02:56]}  Bg7 {[%clk 0:03:01]} 4. Bg2 {[%clk 0:02:57]}  c5 {[%clk 0:02:58]} 5. c3 {[%clk 0:02:55]}  cxd4 {[%clk 0:02:56]} 6. cxd4 {[%clk 0:02:56]}  Nf6 {[%clk 0:02:57]} 7. O-O {[%clk 0:02:56]}  O-O {[%clk 0:02:58]} 8. Nc3 {[%clk 0:02:57]}  Nc6 {[%clk 0:02:58]} 9. e4 {[%clk 0:02:57]}  Bg4 {[%clk 0:02:58]} 10. Be3 {[%clk 0:02:57]}  Nd7 {[%clk 0:02:58]} 11. h3 {[%clk 0:02:56]}  Bxf3 {[%clk 0:02:58]} 12. Bxf3 {[%clk 0:02:57]}  e5 {[%clk 0:02:56]} 13. d5 {[%clk 0:02:55]}  Nd4 {[%clk 0:02:56]} 14. Bg2 {[%clk 0:02:51]}  Rc8 {[%clk 0:02:55]} 15. Ne2 {[%clk 0:02:48]}  Qb6 {[%clk 0:02:55]} 16. Qd2 {[%clk 0:02:42]}  Rc7 {[%clk 0:02:39]} 17. Rad1 {[%clk 0:02:37]}  Rfc8 {[%clk 0:02:36]} 18. Nxd4 {[%clk 0:02:37]}  exd4 {[%clk 0:02:37]} 19. Bxd4 {[%clk 0:02:37]}  Qxd4 {[%clk 0:02:36]} 20. Qxd4 {[%clk 0:02:38]}  Bxd4 {[%clk 0:02:37]} 21. Rxd4 {[%clk 0:02:38]}  Rc2 {[%clk 0:02:38]} 22. Rb4 {[%clk 0:02:38]}  b6 {[%clk 0:02:38]} 23. f4 {[%clk 0:02:36]}  Rd2 {[%clk 0:02:37]} 24. Rf2 {[%clk 0:02:34]}  Rc1+ {[%clk 0:02:37]} 25. Bf1 {[%clk 0:02:34]}  Rdd1 {[%clk 0:02:37]} 26. Kg2 {[%clk 0:02:29]}  Nc5 {[%clk 0:02:37]} 27. e5 {[%clk 0:02:20]}  Rxd5 {[%clk 0:02:33]} 28. exd6 {[%clk 0:02:20]}  Rxd6 {[%clk 0:02:34]} 29. Rc4 {[%clk 0:02:12]}  Re1 {[%clk 0:02:31]} 30. b4 {[%clk 0:02:02]}  Nd3 {[%clk 0:02:29]} 31. Bxd3 {[%clk 0:02:02]}  Rxd3 {[%clk 0:02:30]} 32. f5 {[%clk 0:01:57]}  Ree3 {[%clk 0:02:30]} 33. Rg4 {[%clk 0:01:56]}  h5 {[%clk 0:02:19]} 34. Rg5 {[%clk 0:01:55]}  Kg7 {[%clk 0:02:18]} 35. fxg6 {[%clk 0:01:54]}  fxg6 {[%clk 0:02:19]} 36. h4 {[%clk 0:01:49]}  Ra3 {[%clk 0:02:17]} 37. b5 {[%clk 0:01:42]}  Re6 {[%clk 0:02:09]} 38. Rd2 {[%clk 0:01:32]}  Kh6 {[%clk 0:02:06]} 39. Rgd5 {[%clk 0:01:18]}  Ree3 {[%clk 0:02:04]} 40. Rg5 {[%clk 0:01:18]}  Red3 {[%clk 0:01:52]} 41. Re2 {[%clk 0:01:16]}  Rd6 {[%clk 0:01:52]} 42. Rge5 {[%clk 0:01:14]}  Rd8 {[%clk 0:01:18]} 43. Rg5 {[%clk 0:01:10]}  Rd4 {[%clk 0:01:17]} 44. Kh3 {[%clk 0:01:06]}  Rd6 {[%clk 0:01:11]} 45. Rge5 {[%clk 0:01:01]}  Ra4 {[%clk 0:01:02]} 46. Rg5 {[%clk 0:01:00]}  Rad4 {[%clk 0:01:00]} 47. Rf2 {[%clk 0:00:53]}  R6d5 {[%clk 0:00:48]} 48. Rxd5 {[%clk 0:00:49]}  Rxd5 {[%clk 0:00:49]} 49. a4 {[%clk 0:00:49]}  Rd4 {[%clk 0:00:48]} 50. Rf4 {[%clk 0:00:43]}  Rxf4 {[%clk 0:00:45]} 51. gxf4 {[%clk 0:00:44]}  Kg7 {[%clk 0:00:45]} 52. Kg3 {[%clk 0:00:44]}  Kf6 {[%clk 0:00:46]} 53. Kf2 {[%clk 0:00:45]}  Ke6 {[%clk 0:00:45]} 54. Ke2 {[%clk 0:00:45]}  Kf6 {[%clk 0:00:38]} 55. Kf2 {[%clk 0:00:45]}  Kf7 {[%clk 0:00:37]} 56. Kf3 {[%clk 0:00:44]}  Ke7 {[%clk 0:00:36]} 57. Ke3 {[%clk 0:00:42]}  Kd6 {[%clk 0:00:33]} 58. Kd2 {[%clk 0:00:36]}  Kc5 {[%clk 0:00:27]} 59. Kc3 {[%clk 0:00:34]}  Kd5 {[%clk 0:00:27]} 60. Kd3 {[%clk 0:00:35]}  Kc5 {[%clk 0:00:26]} 61. Kc3 {[%clk 0:00:35]}  Kd5 {[%clk 0:00:27]} 62. Kd3 {[%clk 0:00:35]}  Kc5 {[%clk 0:00:27]} 63. Kc3 {[%clk 0:00:36]} 1/2-1/2


[Site "https://www.chess.com"]

[Event "Titled Tuesday Blitz October 31 Late 2023"]
[White "Ilamparthi A R"]
[Black "Luczak, Filip"]
[WhiteFideId "45015775"]
[BlackFideId "1193686"]
[WhiteElo "2938"]
[BlackElo "2639"]
[Result "1/2-1/2"]
[Round "3"]
[TimeControl "180+1"]
[Date "2023.10.31"]
[WhiteClock "0:00:06"]
[BlackClock "0:00:03"]
[Board "39"]

1. d4 {[%clk 0:02:57]}  g6 {[%clk 0:02:51]} 2. Nf3 {[%clk 0:02:57]}  Bg7 {[%clk 0:02:51]} 3. Bf4 {[%clk 0:02:57]}  c5 {[%clk 0:02:50]} 4. e3 {[%clk 0:02:57]}  Qb6 {[%clk 0:02:47]} 5. Nc3 {[%clk 0:02:56]}  Qxb2 {[%clk 0:02:44]} 6. Nb5 {[%clk 0:02:56]}  Na6 {[%clk 0:02:45]} 7. Be2 {[%clk 0:02:44]}  cxd4 {[%clk 0:02:39]} 8. exd4 {[%clk 0:02:43]}  Qb4+ {[%clk 0:02:38]} 9. c3 {[%clk 0:02:42]}  Qa5 {[%clk 0:02:36]} 10. O-O {[%clk 0:02:42]}  Nf6 {[%clk 0:02:36]} 11. Re1 {[%clk 0:02:33]}  O-O {[%clk 0:02:34]} 12. Bf1 {[%clk 0:02:33]}  Re8 {[%clk 0:02:25]} 13. Qb3 {[%clk 0:02:25]}  d6 {[%clk 0:02:15]} 14. Ng5 {[%clk 0:02:20]}  d5 {[%clk 0:02:16]} 15. c4 {[%clk 0:01:53]}  h6 {[%clk 0:02:00]} 16. Nf3 {[%clk 0:01:51]}  Be6 {[%clk 0:01:55]} 17. Rxe6 {[%clk 0:01:32]}  fxe6 {[%clk 0:01:53]} 18. Ne5 {[%clk 0:01:25]}  g5 {[%clk 0:01:49]} 19. Bg3 {[%clk 0:01:24]}  Rad8 {[%clk 0:01:44]} 20. h4 {[%clk 0:01:20]}  Ne4 {[%clk 0:01:41]} 21. hxg5 {[%clk 0:01:18]}  hxg5 {[%clk 0:01:41]} 22. Be2 {[%clk 0:01:03]}  Rf8 {[%clk 0:01:36]} 23. Bg4 {[%clk 0:01:02]}  Rf6 {[%clk 0:01:13]} 24. a3 {[%clk 0:00:50]}  Nb8 {[%clk 0:00:51]} 25. cxd5 {[%clk 0:00:29]}  exd5 {[%clk 0:00:50]} 26. Bf3 {[%clk 0:00:24]}  Nd2 {[%clk 0:00:29]} 27. Bxd5+ {[%clk 0:00:23]}  Kf8 {[%clk 0:00:27]} 28. Qc2 {[%clk 0:00:10]}  Qxb5 {[%clk 0:00:20]} 29. Ba2 {[%clk 0:00:09]}  Qe2 {[%clk 0:00:11]} 30. Qh7 {[%clk 0:00:09]}  e6 {[%clk 0:00:10]} 31. Rc1 {[%clk 0:00:09]}  Qe4 {[%clk 0:00:10]} 32. Qh5 {[%clk 0:00:07]}  Nc6 {[%clk 0:00:10]} 33. Nxc6 {[%clk 0:00:07]}  bxc6 {[%clk 0:00:10]} 34. Be5 {[%clk 0:00:07]}  Qf5 {[%clk 0:00:05]} 35. Bxf6 {[%clk 0:00:07]}  Qxf6 {[%clk 0:00:06]} 36. Rxc6 {[%clk 0:00:07]}  Ne4 {[%clk 0:00:04]} 37. Qe2 {[%clk 0:00:05]}  Rxd4 {[%clk 0:00:04]} 38. Rxe6 {[%clk 0:00:05]}  Rd1+ {[%clk 0:00:03]} 39. Qxd1 {[%clk 0:00:05]}  Qxf2+ {[%clk 0:00:04]} 40. Kh2 {[%clk 0:00:05]}  Qh4+ {[%clk 0:00:04]} 41. Kg1 {[%clk 0:00:06]}  Qf2+ {[%clk 0:00:03]} 42. Kh2 {[%clk 0:00:06]}  Qg3+ {[%clk 0:00:03]} 43. Kg1 {[%clk 0:00:06]}  Qe3+ {[%clk 0:00:03]} 44. Kh2 {[%clk 0:00:06]}  Qf4+ {[%clk 0:00:03]} 45. Kg1 {[%clk 0:00:06]}  Qf2+ {[%clk 0:00:03]} 1/2-1/2


[Site "https://www.chess.com"]

[Event "Titled Tuesday Blitz October 31 Late 2023"]
[White "Cordova, Emilio"]
[Black "Pinheiro, Iung Alicio de O."]
[WhiteFideId "3801497"]
[BlackFideId "2104350"]
[WhiteElo "2927"]
[BlackElo "2638"]
[Result "1-0"]
[Round "3"]
[TimeControl "180+1"]
[Date "2023.10.31"]
[WhiteClock "0:01:10"]
[BlackClock "0:00:04"]
[Board "40"]

1. d4 {[%clk 0:03:00]}  Nf6 {[%clk 0:02:55]} 2. c4 {[%clk 0:03:00]}  e6 {[%clk 0:02:54]} 3. Nc3 {[%clk 0:03:00]}  Bb4 {[%clk 0:02:52]} 4. a3 {[%clk 0:02:58]}  Bxc3+ {[%clk 0:02:52]} 5. bxc3 {[%clk 0:02:59]}  c5 {[%clk 0:02:50]} 6. e3 {[%clk 0:02:58]}  Nc6 {[%clk 0:02:47]} 7. Bd3 {[%clk 0:02:58]}  d6 {[%clk 0:02:32]} 8. Ne2 {[%clk 0:02:57]}  e5 {[%clk 0:02:27]} 9. O-O {[%clk 0:02:52]}  h6 {[%clk 0:02:15]} 10. Ng3 {[%clk 0:02:50]}  Qe7 {[%clk 0:02:02]} 11. f4 {[%clk 0:02:47]}  e4 {[%clk 0:01:54]} 12. Bb1 {[%clk 0:02:37]}  Kd8 {[%clk 0:01:44]} 13. dxc5 {[%clk 0:02:36]}  Bg4 {[%clk 0:01:29]} 14. Qxd6+ {[%clk 0:02:31]}  Qxd6 {[%clk 0:01:22]} 15. cxd6 {[%clk 0:02:32]}  Re8 {[%clk 0:01:20]} 16. c5 {[%clk 0:02:29]}  Bd7 {[%clk 0:01:18]} 17. Ba2 {[%clk 0:02:23]}  Rf8 {[%clk 0:01:17]} 18. Rb1 {[%clk 0:02:22]}  Na5 {[%clk 0:01:16]} 19. Bd2 {[%clk 0:02:18]}  Be6 {[%clk 0:01:02]} 20. Bxe6 {[%clk 0:02:09]}  fxe6 {[%clk 0:01:01]} 21. Rb4 {[%clk 0:02:09]}  Nd7 {[%clk 0:00:38]} 22. Nxe4 {[%clk 0:02:08]}  Rc8 {[%clk 0:00:38]} 23. Ra4 {[%clk 0:02:01]}  Nxc5 {[%clk 0:00:29]} 24. Nxc5 {[%clk 0:01:52]}  Rxc5 {[%clk 0:00:30]} 25. e4 {[%clk 0:01:51]}  Nc4 {[%clk 0:00:25]} 26. Bc1 {[%clk 0:01:46]}  a6 {[%clk 0:00:25]} 27. e5 {[%clk 0:01:46]}  Kd7 {[%clk 0:00:25]} 28. Rd1 {[%clk 0:01:44]}  g5 {[%clk 0:00:19]} 29. Rd4 {[%clk 0:01:42]}  b5 {[%clk 0:00:15]} 30. Rxa6 {[%clk 0:01:42]}  gxf4 {[%clk 0:00:15]} 31. Ra7+ {[%clk 0:01:39]}  Kc6 {[%clk 0:00:15]} 32. d7 {[%clk 0:01:36]}  Rd8 {[%clk 0:00:13]} 33. Bxf4 {[%clk 0:01:35]}  Rd5 {[%clk 0:00:13]} 34. Rxd5 {[%clk 0:01:30]}  Kxd5 {[%clk 0:00:11]} 35. Bxh6 {[%clk 0:01:27]}  Nxe5 {[%clk 0:00:11]} 36. Bg5 {[%clk 0:01:23]}  Rxd7 {[%clk 0:00:11]} 37. Rxd7+ {[%clk 0:01:23]}  Nxd7 {[%clk 0:00:12]} 38. h4 {[%clk 0:01:23]}  Ke4 {[%clk 0:00:09]} 39. h5 {[%clk 0:01:22]}  Kf5 {[%clk 0:00:08]} 40. h6 {[%clk 0:01:22]}  Kg6 {[%clk 0:00:08]} 41. Kf2 {[%clk 0:01:18]}  Ne5 {[%clk 0:00:05]} 42. Ke2 {[%clk 0:01:16]}  Kxg5 {[%clk 0:00:05]} 43. h7 {[%clk 0:01:16]}  Ng6 {[%clk 0:00:05]} 44. c4 {[%clk 0:01:11]}  bxc4 {[%clk 0:00:05]} 45. a4 {[%clk 0:01:12]}  c3 {[%clk 0:00:02]} 46. a5 {[%clk 0:01:12]}  c2 {[%clk 0:00:02]} 47. Kd2 {[%clk 0:01:12]}  e5 {[%clk 0:00:03]} 48. a6 {[%clk 0:01:11]}  e4 {[%clk 0:00:04]} 49. a7 {[%clk 0:01:11]}  e3+ {[%clk 0:00:04]} 50. Kxc2 {[%clk 0:01:11]}  e2 {[%clk 0:00:05]} 51. Kd2 {[%clk 0:01:11]}  Nf4 {[%clk 0:00:04]} 52. h8=Q {[%clk 0:01:10]} 1-0


[Site "https://www.chess.com"]

[Event "Titled Tuesday Blitz October 31 Late 2023"]
[White "Souleidis, Georgios"]
[Black "Rustemov, Alexander"]
[WhiteFideId "4206827"]
[BlackFideId "4119002"]
[WhiteElo "2614"]
[BlackElo "2869"]
[Result "0-1"]
[Round "3"]
[TimeControl "180+1"]
[Date "2023.10.31"]
[WhiteClock "0:00:00"]
[BlackClock "0:00:40"]
[Board "42"]

1. e4 {[%clk 0:03:00]}  e6 {[%clk 0:02:58]} 2. d4 {[%clk 0:03:01]}  d5 {[%clk 0:02:59]} 3. Nc3 {[%clk 0:03:01]}  dxe4 {[%clk 0:02:59]} 4. Nxe4 {[%clk 0:03:01]}  Bd7 {[%clk 0:03:00]} 5. Bd3 {[%clk 0:02:57]}  Bc6 {[%clk 0:03:00]} 6. Nf3 {[%clk 0:02:57]}  Nd7 {[%clk 0:03:01]} 7. c3 {[%clk 0:02:56]}  Ngf6 {[%clk 0:03:01]} 8. Qe2 {[%clk 0:02:52]}  Nxe4 {[%clk 0:03:01]} 9. Bxe4 {[%clk 0:02:52]}  Bxe4 {[%clk 0:03:01]} 10. Qxe4 {[%clk 0:02:53]}  c6 {[%clk 0:03:02]} 11. O-O {[%clk 0:02:43]}  Be7 {[%clk 0:03:03]} 12. Bf4 {[%clk 0:02:42]}  O-O {[%clk 0:03:03]} 13. Rad1 {[%clk 0:02:38]}  Qa5 {[%clk 0:03:02]} 14. a3 {[%clk 0:02:37]}  Qd5 {[%clk 0:03:01]} 15. Qe2 {[%clk 0:02:35]}  Rfe8 {[%clk 0:02:59]} 16. Rfe1 {[%clk 0:02:35]}  Rad8 {[%clk 0:03:00]} 17. h3 {[%clk 0:02:35]}  Bf6 {[%clk 0:02:56]} 18. Ne5 {[%clk 0:02:33]}  Qb5 {[%clk 0:02:45]} 19. c4 {[%clk 0:02:25]}  Qb6 {[%clk 0:02:39]} 20. c5 {[%clk 0:02:18]}  Qb5 {[%clk 0:02:39]} 21. Qxb5 {[%clk 0:01:16]}  cxb5 {[%clk 0:02:40]} 22. c6 {[%clk 0:01:17]}  bxc6 {[%clk 0:02:27]} 23. Nxc6 {[%clk 0:01:18]}  Ra8 {[%clk 0:02:26]} 24. d5 {[%clk 0:01:09]}  Nb6 {[%clk 0:01:56]} 25. dxe6 {[%clk 0:01:08]}  Rxe6 {[%clk 0:01:49]} 26. Rxe6 {[%clk 0:01:04]}  fxe6 {[%clk 0:01:50]} 27. b3 {[%clk 0:00:42]}  Nd5 {[%clk 0:01:48]} 28. Be3 {[%clk 0:00:39]}  a6 {[%clk 0:01:44]} 29. Nb4 {[%clk 0:00:28]}  Nxe3 {[%clk 0:01:28]} 30. fxe3 {[%clk 0:00:29]}  a5 {[%clk 0:01:27]} 31. Nc6 {[%clk 0:00:26]}  a4 {[%clk 0:01:26]} 32. b4 {[%clk 0:00:12]}  Bb2 {[%clk 0:01:24]} 33. Rd3 {[%clk 0:00:12]}  Kf7 {[%clk 0:01:21]} 34. Kf1 {[%clk 0:00:11]}  Rc8 {[%clk 0:01:20]} 35. Nd4 {[%clk 0:00:08]}  Bxd4 {[%clk 0:01:10]} 36. exd4 {[%clk 0:00:09]}  Rc1+ {[%clk 0:01:05]} 37. Kf2 {[%clk 0:00:08]}  Ra1 {[%clk 0:01:05]} 38. Kf3 {[%clk 0:00:06]}  Ke7 {[%clk 0:01:06]} 39. Ke4 {[%clk 0:00:04]}  Kd6 {[%clk 0:01:06]} 40. Rc3 {[%clk 0:00:03]}  Re1+ {[%clk 0:00:57]} 41. Kf3 {[%clk 0:00:03]}  Kd5 {[%clk 0:00:49]} 42. Rc5+ {[%clk 0:00:03]}  Kxd4 {[%clk 0:00:50]} 43. Rxb5 {[%clk 0:00:04]}  Ra1 {[%clk 0:00:50]} 44. Kf2 {[%clk 0:00:02]}  Ra2+ {[%clk 0:00:46]} 45. Kf1 {[%clk 0:00:03]}  Rxa3 {[%clk 0:00:44]} 46. Rb7 {[%clk 0:00:03]}  Rb3 {[%clk 0:00:40]} 47. Rxg7 {[%clk 0:00:02]}  a3 {[%clk 0:00:40]} 48. Ra7 {[%clk 0:00:02]}  Kc3 {[%clk 0:00:40]} 49. b5 {[%clk 0:00:00]}  Kb2 {[%clk 0:00:40]} 0-1


[Site "https://www.chess.com"]

[Event "Titled Tuesday Blitz October 31 Late 2023"]
[White "Lobanov, Sergei"]
[Black "Fiorito, Francisco"]
[WhiteFideId "24183750"]
[BlackFideId "180165"]
[WhiteElo "2820"]
[BlackElo "2612"]
[Result "1-0"]
[Round "3"]
[TimeControl "180+1"]
[Date "2023.10.31"]
[WhiteClock "0:01:48"]
[BlackClock "0:01:06"]
[Board "44"]

1. d4 {[%clk 0:03:00]}  Nf6 {[%clk 0:02:59]} 2. c4 {[%clk 0:03:01]}  c5 {[%clk 0:02:56]} 3. d5 {[%clk 0:03:01]}  e5 {[%clk 0:02:55]} 4. Nc3 {[%clk 0:02:59]}  d6 {[%clk 0:02:56]} 5. e4 {[%clk 0:02:59]}  g6 {[%clk 0:02:56]} 6. Nf3 {[%clk 0:02:56]}  Bg7 {[%clk 0:02:57]} 7. h3 {[%clk 0:02:55]}  O-O {[%clk 0:02:57]} 8. Be2 {[%clk 0:02:55]}  Nh5 {[%clk 0:02:57]} 9. g3 {[%clk 0:02:53]}  h6 {[%clk 0:02:55]} 10. Nd2 {[%clk 0:02:35]}  Nf6 {[%clk 0:02:54]} 11. Nf1 {[%clk 0:02:33]}  Nh7 {[%clk 0:02:52]} 12. g4 {[%clk 0:02:28]}  Qh4 {[%clk 0:02:19]} 13. Ne3 {[%clk 0:02:27]}  a6 {[%clk 0:02:12]} 14. Ng2 {[%clk 0:02:22]}  Qe7 {[%clk 0:02:08]} 15. h4 {[%clk 0:02:15]}  Rd8 {[%clk 0:01:59]} 16. Be3 {[%clk 0:02:11]}  Nd7 {[%clk 0:01:51]} 17. Qd2 {[%clk 0:02:11]}  Qf8 {[%clk 0:01:49]} 18. h5 {[%clk 0:02:06]}  g5 {[%clk 0:01:48]} 19. f3 {[%clk 0:02:01]}  Nhf6 {[%clk 0:01:42]} 20. Bf2 {[%clk 0:02:01]}  Ne8 {[%clk 0:01:42]} 21. Ne3 {[%clk 0:02:01]}  Nc7 {[%clk 0:01:42]} 22. a3 {[%clk 0:01:56]}  b5 {[%clk 0:01:42]} 23. cxb5 {[%clk 0:01:56]}  axb5 {[%clk 0:01:42]} 24. Nxb5 {[%clk 0:01:56]}  Nxb5 {[%clk 0:01:43]} 25. Bxb5 {[%clk 0:01:57]}  Nb6 {[%clk 0:01:43]} 26. O-O {[%clk 0:01:56]}  Ba6 {[%clk 0:01:41]} 27. Bxa6 {[%clk 0:01:55]}  Rxa6 {[%clk 0:01:41]} 28. b4 {[%clk 0:01:54]}  Nd7 {[%clk 0:01:33]} 29. Nf5 {[%clk 0:01:53]}  Rc8 {[%clk 0:01:23]} 30. Rfc1 {[%clk 0:01:48]}  cxb4 {[%clk 0:01:09]} 31. Rxc8 {[%clk 0:01:47]}  Qxc8 {[%clk 0:01:06]} 32. Ne7+ {[%clk 0:01:48]} 1-0


[Site "https://www.chess.com"]